[Event "SVK-ch Open 2018"]
[Site "Banska Stiavnica"]
[Date "2018.07.11"]
[Round "5"]
[White "Balogh, Peter"]
[Black "Sosovicka, Jakub"]
[Result "1-0"]
[ECO "B93"]
[WhiteElo "2097"]
[BlackElo "2078"]
[Annotator "NA"]
[PlyCount "85"]
[EventDate "2018.07.07"]
[EventType "swiss"]
[EventCountry "SVK"]
[SourceTitle "playchess.com"]
[Source "ChessBase"]
[SourceQuality "1"]
[TimeControl "40/5400+30:1800+30"]

1. e4 {[%emt 0:00:58]} c5 {[%emt 0:00:00]} 2. Nf3 {[%emt 0:00:04]} d6 {[%emt 0:00:00]} 3. d4 {[%emt 0:00:03]} cxd4 {[%emt 0:00:00]} 4. Nxd4 {[%emt 0:00:05]} Nf6 {[%emt 0:00:00]} 5. Nc3 {[%emt 0:00:04]} a6 {[%emt 0:00:04]} 6. f4 {[%emt 0:00:05]} e5 {[%emt 0:01:59]} 7. Nf3 {[%emt 0:00:07]} Nbd7 {[%emt 0:02:20]} 8. a4 {[%emt 0:00:09]} Be7 {[%emt 0:02:06]} 9. Bd3 {[%emt 0:00:08]} O-O {[%emt 0:01:07]} 10. O-O {[%emt 0:00:07]} exf4 {[%emt 0:10:09]} 11. Bxf4 {[%emt 0:00:22]} Qb6+ {[%emt 0:10:22]} 12. Kh1 {[%emt 0:01:17]} Qxb2 {[%emt 0:01:20]} 13. Nd5 {[%emt 0:00:09]} Nxd5 {[%emt 0:03:38]} 14. exd5 {[%emt 0:00:07]} Nf6 {[%emt 0:03:46]} 15. c4 {[%emt 0:12:24]} Qb6 {[%emt 0:08:11]} 16. Qc2 {[%emt 0:07:43]} Bg4 {[%emt 0:06:53]} 17. Rab1 {[%emt 0:02:27]} Qc7 {[%emt 0:01:15]} 18. Nd4 {[%emt 0:00:39]} Rac8 {[%emt 0:06:54]} 19. Qf2 {[%emt 0:05:52]} Rfe8 {[%emt 0:14:30]} 20. Qg3 {[%emt 0:17:10]} Kh8 {[%emt 0:12:49]} 21. Bg5 {[%emt 0:10:23]} Bh5 {[%emt 0:03:07]} 22. Qh4 {[%emt 0:18:14]} Bg6 {[%emt 0:02:08]} 23. Ne6 {[%emt 0:00:52]} Bxd3 {[%emt 0:05:33]} 24. Nxc7 {[%emt 0:02:23]} Rxc7 {[%emt 0:00:01]} 25. Rfe1 {[%emt 0:07:35]} Rxc4 {[%emt 0:02:17]} 26. Qxc4 {[%emt 0:03:55]} Bxc4 {[%emt 0:00:05]} 27. Bxf6 {[%emt 0:00:10]} gxf6 {[%emt 0:00:05]} 28. Rxb7 {[%emt 0:00:07]} Bxd5 {[%emt 0:01:24]} 29. Rbxe7 {[%emt 0:00:37]} Rxe7 {[%emt 0:00:13]} 30. Rxe7 {[%emt 0:00:05]} Bc6 {[%emt 0:02:10]} 31. Rxf7 {[%emt 0:00:53]} Bxa4 {[%emt 0:00:06]} 32. Rxf6 {[%emt 0:00:13]} d5 {[%emt 0:00:13]} 33. Rxa6 {[%emt 0:00:20]} Bc2 {[%emt 0:00:21]} 34. Kg1 {[%emt 0:01:02]} Be4 {[%emt 0:00:30]} 35. Kf2 {[%emt 0:00:31]} Kg7 {[%emt 0:00:07]} 36. g3 {[%emt 0:00:11]} h5 {[%emt 0:00:46]} 37. h4 {[%emt 0:00:57]} Kh7 {[%emt 0:01:23]} 38. Ke3 {[%emt 0:00:10]} Kg7 {[%emt 0:00:09]} 39. Kf4 {[%emt 0:00:26]} Bg2 {[%emt 0:00:54]} 40. Kg5 {[%emt 0:01:05]} Bf3 {[%emt 0:00:17]} 41. Ra7+ {[%emt 0:30:53]} Kg8 {[%emt 0:01:06]} 42. Ra3 {[%emt 0:00:00]} Be2 {[%emt 0:00:27]} 43. Re3 {[%emt 0:00:00]} 1-0

[Event "SVK-ch Open 2018"]
[Site "Banska Stiavnica"]
[Date "2018.07.11"]
[Round "5"]
[White "Bochnicka, Vladimir"]
[Black "Weis, Dusan"]
[Result "1-0"]
[ECO "C54"]
[WhiteElo "2092"]
[BlackElo "1818"]
[Annotator "NA"]
[PlyCount "53"]
[EventDate "2018.07.07"]
[EventType "swiss"]
[EventCountry "SVK"]
[SourceTitle "playchess.com"]
[Source "ChessBase"]
[SourceQuality "1"]
[TimeControl "40/5400+30:1800+30"]

1. e4 {[%emt 0:00:00]} e5 {[%emt 0:00:00]} 2. Nf3 {[%emt 0:00:01]} Nc6 {[%emt 0:00:00]} 3. Bc4 {[%emt 0:00:12]} Bc5 {[%emt 0:00:00]} 4. c3 {[%emt 0:00:13]} Nf6 {[%emt 0:00:00]} 5. d3 {[%emt 0:00:07]} h6 {[%emt 0:00:24]} 6. Nbd2 {[%emt 0:00:13]} d6 {[%emt 0:00:26]} 7. Nf1 {[%emt 0:00:36]} O-O {[%emt 0:04:02]} 8. Ng3 {[%emt 0:00:11]} Ne7 {[%emt 0:00:42]} 9. O-O {[%emt 0:00:27]} Be6 {[%emt 0:01:33]} 10. Bb3 {[%emt 0:00:58]} c6 {[%emt 0:01:19]} 11. Bc2 {[%emt 0:06:17]} Qd7 {[%emt 0:07:48]} 12. d4 {[%emt 0:02:44]} exd4 {[%emt 0:00:38]} 13. cxd4 {[%emt 0:00:01]} Bb6 {[%emt 0:01:37]} 14. a3 {[%emt 0:04:51]} Bg4 {[%emt 0:03:35]} 15. Be3 {[%emt 0:05:11]} Qc7 {[%emt 0:15:12]} 16. h3 {[%emt 0:01:55]} Be6 {[%emt 0:04:26]} 17. Rc1 {[%emt 0:04:04]} Kh8 {[%emt 0:05:11]} 18. Qd2 {[%emt 0:05:39]} Nfg8 {[%emt 0:02:50]} 19. Rfe1 {[%emt 0:06:54]} Rad8 {[%emt 0:09:41]} 20. Nh4 {[%emt 0:07:09]} d5 {[%emt 0:10:12]} 21. e5 {[%emt 0:00:18]} f5 {[%emt 0:00:24]} 22. exf6 {[%emt 0:06:05]} Nxf6 {[%emt 0:02:30]} 23. Bxh6 {[%emt 0:01:57]} Bf7 {[%emt 0:03:12]} 24. Bxg7+ {[%emt 0:00:39]} Kxg7 {[%emt 0:00:37]} 25. Qg5+ {[%emt 0:00:06]} Ng6 {[%emt 0:01:51]} 26. Ngf5+ {[%emt 0:01:06]} Kh7 {[%emt 0:01:37]} 27. Qh6+ 1-0

[Event "SVK-ch Open 2018"]
[Site "Banska Stiavnica"]
[Date "2018.07.11"]
[Round "5"]
[White "Lukac, Roman"]
[Black "Gombar, Peter"]
[Result "1-0"]
[ECO "B00"]
[WhiteElo "2089"]
[BlackElo "1974"]
[Annotator "NA"]
[PlyCount "107"]
[EventDate "2018.07.07"]
[EventType "swiss"]
[EventCountry "SVK"]
[SourceTitle "playchess.com"]
[Source "ChessBase"]
[SourceQuality "1"]
[TimeControl "40/5400+30:1800+30"]

1. e4 {[%emt 0:13:15]} b6 {[%emt 0:00:00]} 2. d4 {[%emt 0:00:58]} Bb7 {[%emt 0:00:00]} 3. Nc3 {[%emt 0:00:49]} e6 {[%emt 0:00:03]} 4. Bd3 {[%emt 0:00:38]} Bb4 {[%emt 0:01:09]} 5. Qe2 {[%emt 0:03:22]} Nf6 {[%emt 0:01:19]} 6. a3 {[%emt 0:09:50]} Be7 {[%emt 0:02:58]} 7. f4 {[%emt 0:07:52]} c5 {[%emt 0:06:16]} 8. Nf3 {[%emt 0:01:04]} cxd4 {[%emt 0:01:20]} 9. Nxd4 {[%emt 0:00:46]} Nc6 {[%emt 0:00:37]} 10. Nf3 {[%emt 0:04:30]} d5 {[%emt 0:09:30]} 11. e5 {[%emt 0:01:07]} Nd7 {[%emt 0:03:00]} 12. b4 {[%emt 0:03:29]} Rc8 {[%emt 0:07:56]} 13. Bd2 {[%emt 0:08:32]} a5 {[%emt 0:08:18]} 14. b5 {[%emt 0:22:19]} Ncb8 {[%emt 0:01:12]} 15. O-O {[%emt 0:01:37]} Nc5 {[%emt 0:03:10]} 16. Kh1 {[%emt 0:05:37]} Nbd7 {[%emt 0:03:54]} 17. Nd4 {[%emt 0:03:30]} Nxd3 {[%emt 0:04:53]} 18. cxd3 {[%emt 0:00:09]} Nc5 {[%emt 0:02:49]} 19. f5 {[%emt 0:01:50]} exf5 {[%emt 0:19:34]} 20. Rxf5 {[%emt 0:01:28]} Ne6 {[%emt 0:01:51]} 21. Qf2 {[%emt 0:03:02]} Nxd4 {[%emt 0:01:54]} 22. Qxd4 {[%emt 0:00:02]} g6 {[%emt 0:01:49]} 23. e6 {[%emt 0:01:40]} f6 {[%emt 0:01:32]} 24. Rf3 {[%emt 0:01:20]} Bc5 {[%emt 0:05:50]} 25. Qh4 {[%emt 0:00:56]} f5 {[%emt 0:01:40]} 26. Bg5 {[%emt 0:00:45]} Be7 {[%emt 0:00:24]} 27. Qd4 {[%emt 0:00:20]} Rg8 {[%emt 0:00:35]} 28. h4 {[%emt 0:01:11]} h6 {[%emt 0:03:00]} 29. Bxe7 {[%emt 0:00:40]} Kxe7 {[%emt 0:00:16]} 30. h5 {[%emt 0:00:34]} Rxc3 {[%emt 0:02:06]} 31. Qxc3 {[%emt 0:00:39]} d4 {[%emt 0:00:07]} 32. Qd2 {[%emt 0:01:02]} Bxf3 {[%emt 0:00:48]} 33. gxf3 {[%emt 0:00:17]} Qd5 {[%emt 0:01:12]} 34. Qf4 {[%emt 0:00:29]} Qd6 {[%emt 0:01:52]} 35. Qxh6 {[%emt 0:00:21]} Qxe6 {[%emt 0:01:26]} 36. Rc1 {[%emt 0:00:53]} Rc8 {[%emt 0:01:46]} 37. Qg7+ {[%emt 0:00:19]} Kd6 {[%emt 0:00:56]} 38. Qxd4+ {[%emt 0:00:30]} Ke7 {[%emt 0:00:07]} 39. Qg7+ {[%emt 0:00:31]} Kd6 {[%emt 0:00:14]} 40. Rxc8 {[%emt 0:01:01]} Qxc8 {[%emt 0:00:08]} 41. Qxg6+ {[%emt 0:30:08]} Ke5 {[%emt 0:30:29]} 42. Qg3+ {[%emt 0:00:00]} Kf6 {[%emt 0:00:00]} 43. Qh4+ {[%emt 0:00:00]} Ke5 {[%emt 0:00:00]} 44. Qc4 {[%emt 0:00:00]} Qd8 {[%emt 0:00:00]} 45. f4+ {[%emt 0:00:00]} Kf6 {[%emt 0:00:00]} 46. Kh2 {[%emt 0:00:00]} Kg7 {[%emt 0:00:00]} 47. Kh3 {[%emt 0:00:00]} Kf6 {[%emt 0:00:00]} 48. Qc6+ {[%emt 0:00:04]} Ke7 {[%emt 0:00:00]} 49. Qc3 {[%emt 0:00:21]} Kf7 {[%emt 0:00:00]} 50. Qc4+ {[%emt 0:01:15]} Kf6 {[%emt 0:00:00]} 51. Kg3 {[%emt 0:01:05]} Ke7 {[%emt 0:00:00]} 52. Kf3 {[%emt 0:00:51]} Kf6 {[%emt 0:00:00]} 53. Qc6+ {[%emt 0:00:34]} Ke7 {[%emt 0:00:00]} 54. Ke3 {[%emt 0:00:15]} 1-0

[Event "SVK-ch Open 2018"]
[Site "Banska Stiavnica"]
[Date "2018.07.11"]
[Round "5"]
[White "Brhel, Jan"]
[Black "Ucekajova, Veronika"]
[Result "1-0"]
[ECO "A57"]
[WhiteElo "2070"]
[BlackElo "1757"]
[Annotator "NA"]
[PlyCount "57"]
[EventDate "2018.07.07"]
[EventType "swiss"]
[EventCountry "SVK"]
[SourceTitle "playchess.com"]
[Source "ChessBase"]
[SourceQuality "1"]
[TimeControl "40/5400+30:1800+30"]

1. d4 {[%emt 0:01:33]} Nf6 {[%emt 0:00:00]} 2. c4 {[%emt 0:00:09]} c5 {[%emt 0:00:06]} 3. d5 {[%emt 0:00:08]} b5 {[%emt 0:00:08]} 4. Qc2 {[%emt 0:04:30]} bxc4 {[%emt 0:06:03]} 5. Nc3 {[%emt 0:01:16]} d6 $11 {[%emt 0:05:11]} 6. e4 {[%emt 0:00:19]} Nbd7 {[%emt 0:01:24]} 7. Bxc4 {[%emt 0:00:13]} Nb6 {[%emt 0:01:40]} 8. b3 {[%emt 0:00:20]} g6 {[%emt 0:02:00]} 9. Nf3 {[%emt 0:11:57]} Bg7 {[%emt 0:02:18]} 10. Rb1 {[%emt 0:03:37]} O-O {[%emt 0:01:46]} 11. O-O {[%emt 0:03:09]} Nxc4 {[%emt 0:25:23]} 12. bxc4 {[%emt 0:00:08]} e6 {[%emt 0:00:34]} 13. h3 {[%emt 0:15:59]} exd5 {[%emt 0:12:00]} 14. cxd5 {[%emt 0:01:02]} Ba6 {[%emt 0:00:26]} 15. Re1 {[%emt 0:02:35]} Qa5 {[%emt 0:08:03]} 16. Bd2 Rfb8 {[%emt 0:00:03]} 17. Rxb8+ {[%emt 0:05:11]} Rxb8 {[%emt 0:03:39]} 18. e5 {[%emt 0:00:51]} dxe5 {[%emt 0:09:29]} 19. Nxe5 {[%emt 0:07:17]} Qc7 {[%emt 0:03:49]} 20. Qa4 Qd6 21. Nc6 {[%emt 0:03:08]} Rb6 {[%emt 0:02:51]} 22. Bf4 {[%emt 0:00:43]} Qd7 {[%emt 0:01:29]} 23. Re7 {[%emt 0:01:15]} Qf5 {[%emt 0:01:01]} 24. Re8+ {[%emt 0:02:02]} Nxe8 {[%emt 0:00:28]} 25. Ne7+ {[%emt 0:00:11]} Kf8 {[%emt 0:00:09]} 26. Nxf5 {[%emt 0:00:14]} Bxc3 {[%emt 0:01:06]} 27. Bh6+ {[%emt 0:00:51]} Ng7 {[%emt 0:00:21]} 28. Qd7 {[%emt 0:01:04]} Bf6 {[%emt 0:02:04]} 29. Bxg7+ {[%emt 0:00:24]} 1-0

[Event "SVK-ch Open 2018"]
[Site "Banska Stiavnica"]
[Date "2018.07.11"]
[Round "5"]
[White "Odler, Daniel"]
[Black "Brnusak, Tomas"]
[Result "0-1"]
[ECO "B49"]
[WhiteElo "2067"]
[BlackElo "1910"]
[Annotator "NA"]
[PlyCount "82"]
[EventDate "2018.07.07"]
[EventType "swiss"]
[EventCountry "SVK"]
[SourceTitle "playchess.com"]
[Source "ChessBase"]
[SourceQuality "1"]
[TimeControl "40/5400+30:1800+30"]

1. e4 {[%emt 0:00:00]} c5 {[%emt 0:00:00]} 2. Nf3 {[%emt 0:00:30]} e6 {[%emt 0:00:30]} 3. d4 {[%emt 0:00:30]} cxd4 {[%emt 0:00:30]} 4. Nxd4 {[%emt 0:00:30]} Nc6 {[%emt 0:00:00]} 5. Nc3 {[%emt 0:00:00]} Qc7 {[%emt 0:02:49]} 6. Be3 {[%emt 0:00:00]} a6 {[%emt 0:02:48]} 7. Be2 {[%emt 0:01:03]} Nf6 {[%emt 0:02:14]} 8. O-O {[%emt 0:00:20]} Bb4 {[%emt 0:03:00]} 9. Na4 {[%emt 0:01:03]} Be7 {[%emt 0:01:37]} 10. Nxc6 {[%emt 0:00:54]} bxc6 {[%emt 0:01:15]} 11. Nb6 {[%emt 0:01:32]} Rb8 {[%emt 0:01:30]} 12. Nxc8 $11 {[%emt 0:00:11]} Qxc8 {[%emt 0:01:18]} 13. e5 {[%emt 0:03:20]} Nd5 {[%emt 0:01:51]} 14. Bd2 {[%emt 0:01:33]} O-O {[%emt 0:02:41]} 15. c4 {[%emt 0:00:40]} Nb6 {[%emt 0:01:19]} 16. Bd3 {[%emt 0:05:01]} Qe8 {[%emt 0:02:59]} 17. Qc2 {[%emt 0:05:06]} h6 {[%emt 0:05:52]} 18. a4 {[%emt 0:09:40]} c5 {[%emt 0:03:24]} 19. f4 {[%emt 0:04:18]} f5 {[%emt 0:03:02]} 20. exf6 {[%emt 0:01:25]} Bxf6 {[%emt 0:01:09]} 21. Be3 {[%emt 0:05:13]} Qe7 {[%emt 0:03:18]} 22. Rae1 {[%emt 0:03:42]} Nc8 {[%emt 0:05:34]} 23. b3 {[%emt 0:00:29]} Na7 {[%emt 0:00:42]} 24. Qf2 {[%emt 0:02:42]} d6 {[%emt 0:01:33]} 25. Bc2 {[%emt 0:07:57]} Nc6 {[%emt 0:01:38]} 26. Qe2 {[%emt 0:01:50]} Bd4 {[%emt 0:03:09]} 27. Qd3 {[%emt 0:01:31]} Qf6 {[%emt 0:02:04]} 28. Qh7+ {[%emt 0:04:11]} Kf7 {[%emt 0:00:23]} 29. Qe4 {[%emt 0:00:42]} Bxe3+ {[%emt 0:01:25]} 30. Rxe3 {[%emt 0:00:23]} Nd4 {[%emt 0:00:43]} 31. Bd1 {[%emt 0:01:21]} Kg8 {[%emt 0:05:52]} 32. g3 {[%emt 0:10:47]} Qf5 {[%emt 0:03:24]} 33. Qxf5 {[%emt 0:04:39]} Rxf5 {[%emt 0:00:13]} 34. Rfe1 {[%emt 0:01:20]} Rf6 {[%emt 0:01:43]} 35. Kg2 {[%emt 0:01:16]} Kf7 {[%emt 0:01:23]} 36. Bg4 {[%emt 0:10:15]} Nc2 {[%emt 0:04:41]} 37. Bxe6+ {[%emt 0:01:28]} Kf8 {[%emt 0:00:11]} 38. Bd7 {[%emt 0:07:41]} Nxe1+ {[%emt 0:00:43]} 39. Rxe1 {[%emt 0:00:05]} Rf7 {[%emt 0:01:38]} 40. Be6 {[%emt 0:02:10]} Rfb7 {[%emt 0:00:47]} 41. Bd5 {[%emt 0:32:04]} Re7 {[%emt 0:30:56]} 0-1

[Event "SVK-ch Open 2018"]
[Site "Banska Stiavnica"]
[Date "2018.07.11"]
[Round "5"]
[White "Bojda, Lubomir"]
[Black "Slaby, Jozef"]
[Result "1-0"]
[ECO "A48"]
[WhiteElo "2064"]
[BlackElo "1731"]
[Annotator "NA"]
[PlyCount "113"]
[EventDate "2018.07.07"]
[EventType "swiss"]
[EventCountry "SVK"]
[SourceTitle "playchess.com"]
[Source "ChessBase"]
[SourceQuality "1"]
[TimeControl "40/5400+30:1800+30"]

1. d4 {[%emt 0:01:14]} Nf6 {[%emt 0:00:00]} 2. Nf3 {[%emt 0:00:06]} g6 {[%emt 0:00:20]} 3. Bf4 {[%emt 0:04:34]} d6 {[%emt 0:01:09]} 4. h3 {[%emt 0:00:18]} Nbd7 {[%emt 0:00:59]} 5. e3 {[%emt 0:03:18]} Bg7 {[%emt 0:01:34]} 6. Bc4 {[%emt 0:03:02]} O-O {[%emt 0:00:44]} 7. O-O {[%emt 0:00:13]} c6 {[%emt 0:04:31]} 8. Nbd2 {[%emt 0:02:01]} b5 {[%emt 0:01:20]} 9. Bd3 {[%emt 0:01:26]} Bb7 {[%emt 0:02:29]} 10. Rc1 {[%emt 0:03:38]} a6 {[%emt 0:00:24]} 11. c4 {[%emt 0:00:33]} Re8 {[%emt 0:02:44]} 12. Bg5 {[%emt 0:05:15]} h6 {[%emt 0:02:14]} 13. Bh4 {[%emt 0:00:12]} Rc8 {[%emt 0:04:37]} 14. Qb3 {[%emt 0:01:26]} Qb6 {[%emt 0:03:55]} 15. Bxf6 {[%emt 0:07:56]} Bxf6 {[%emt 0:01:14]} 16. Ne4 {[%emt 0:00:14]} Bg7 {[%emt 0:00:19]} 17. c5 {[%emt 0:00:20]} dxc5 {[%emt 0:01:03]} 18. Nxc5 {[%emt 0:00:11]} Nxc5 {[%emt 0:00:29]} 19. dxc5 {[%emt 0:00:12]} Qc7 {[%emt 0:00:25]} 20. Bxg6 {[%emt 0:00:05]} e6 {[%emt 0:00:37]} 21. Bb1 {[%emt 0:00:56]} Rcd8 {[%emt 0:00:39]} 22. Rfd1 {[%emt 0:02:25]} Qe7 {[%emt 0:02:47]} 23. Qc2 {[%emt 0:01:20]} f5 {[%emt 0:00:25]} 24. b4 {[%emt 0:01:11]} Bc8 {[%emt 0:01:37]} 25. a3 {[%emt 0:00:09]} Qf6 {[%emt 0:00:46]} 26. Nd4 {[%emt 0:02:35]} Bb7 {[%emt 0:07:10]} 27. Ba2 {[%emt 0:03:06]} Bc8 {[%emt 0:05:24]} 28. Nxc6 {[%emt 0:08:11]} Rxd1+ {[%emt 0:00:18]} 29. Rxd1 {[%emt 0:00:11]} Qb2 {[%emt 0:02:06]} 30. Qb3 {[%emt 0:12:34]} Qxb3 {[%emt 0:00:28]} 31. Bxb3 {[%emt 0:00:06]} Kh7 {[%emt 0:00:42]} 32. f4 {[%emt 0:01:47]} Bb2 {[%emt 0:00:56]} 33. a4 {[%emt 0:00:35]} Kg6 {[%emt 0:03:02]} 34. axb5 {[%emt 0:01:06]} axb5 {[%emt 0:00:06]} 35. Rd6 {[%emt 0:00:23]} Bc3 {[%emt 0:01:03]} 36. Rd3 {[%emt 0:00:24]} Bb2 {[%emt 0:00:25]} 37. Bd1 {[%emt 0:06:25]} Kf6 {[%emt 0:01:23]} 38. Na5 {[%emt 0:01:48]} e5 {[%emt 0:02:31]} 39. Bh5 {[%emt 0:04:56]} Rg8 {[%emt 0:02:44]} 40. Rd6+ {[%emt 0:00:15]} Kg7 {[%emt 0:01:31]} 41. Nc6 {[%emt 0:31:20]} exf4 {[%emt 0:31:14]} 42. exf4 {[%emt 0:00:55]} Bf6 {[%emt 0:04:44]} 43. g3 {[%emt 0:00:05]} Rf8 {[%emt 0:01:07]} 44. Kf2 {[%emt 0:01:07]} Kh8 {[%emt 0:00:06]} 45. Nd4 {[%emt 0:01:16]} Kg7 {[%emt 0:01:20]} 46. Nxb5 {[%emt 0:01:55]} Be7 {[%emt 0:02:24]} 47. Rd2 {[%emt 0:01:06]} Be6 {[%emt 0:01:20]} 48. Nc7 {[%emt 0:02:26]} Bc8 {[%emt 0:01:32]} 49. Ne8+ {[%emt 0:02:26]} Kg8 {[%emt 0:02:54]} 50. Re2 {[%emt 0:00:16]} Bd8 {[%emt 0:00:20]} 51. b5 {[%emt 0:00:14]} Bd7 {[%emt 0:00:36]} 52. c6 {[%emt 0:00:42]} Bb6+ {[%emt 0:00:56]} 53. Kf3 Bxe8 {[%emt 0:00:09]} 54. Bxe8 {[%emt 0:00:57]} Rf6 {[%emt 0:00:26]} 55. Bd7 {[%emt 0:00:41]} Rd6 {[%emt 0:00:52]} 56. Bxf5 {[%emt 0:00:24]} Kg7 {[%emt 0:00:26]} 57. c7 {[%emt 0:01:24]} 1-0

[Event "SVK-ch Open 2018"]
[Site "Banska Stiavnica"]
[Date "2018.07.11"]
[Round "5"]
[White "Bartek, Ladislav"]
[Black "Mrvova, Alena"]
[Result "0-1"]
[ECO "B98"]
[WhiteElo "2049"]
[BlackElo "2202"]
[Annotator "NA"]
[PlyCount "104"]
[EventDate "2018.07.07"]
[EventType "swiss"]
[EventCountry "SVK"]
[SourceTitle "playchess.com"]
[Source "ChessBase"]
[SourceQuality "1"]
[TimeControl "40/5400+30:1800+30"]

1. e4 {[%emt 0:00:00]} c5 {[%emt 0:00:00]} 2. Nf3 {[%emt 0:00:00]} d6 {[%emt 0:00:15]} 3. d4 {[%emt 0:00:00]} cxd4 {[%emt 0:00:05]} 4. Nxd4 {[%emt 0:00:02]} Nf6 {[%emt 0:00:31]} 5. Nc3 {[%emt 0:00:09]} a6 {[%emt 0:00:38]} 6. Bg5 {[%emt 0:00:09]} e6 {[%emt 0:00:51]} 7. f4 {[%emt 0:00:09]} Be7 {[%emt 0:01:21]} 8. Qf3 {[%emt 0:00:11]} h6 {[%emt 0:02:49]} 9. Bh4 {[%emt 0:00:12]} Nfd7 {[%emt 0:00:41]} 10. Bxe7 {[%emt 0:01:50]} Qxe7 {[%emt 0:00:04]} 11. O-O-O {[%emt 0:01:35]} Nc6 {[%emt 0:01:02]} 12. Nxc6 {[%emt 0:04:01]} bxc6 {[%emt 0:00:04]} 13. Bc4 {[%emt 0:03:39]} (13. h4 $14) 13... O-O {[%emt 0:01:20]} 14. Rhe1 {[%emt 0:00:49]} Nb6 {[%emt 0:04:00]} 15. Bb3 $11 {[%emt 0:00:25]} Rd8 {[%emt 0:01:56]} 16. f5 {[%emt 0:05:27]} c5 {[%emt 0:05:17]} 17. fxe6 {[%emt 0:03:24]} fxe6 {[%emt 0:02:01]} 18. Na4 {[%emt 0:05:16]} Nxa4 {[%emt 0:02:04]} 19. Bxa4 {[%emt 0:00:06]} Rb8 {[%emt 0:02:33]} 20. Bb3 {[%emt 0:02:35]} a5 {[%emt 0:02:12]} 21. Qc3 {[%emt 0:01:41]} Qc7 {[%emt 0:00:21]} 22. Re3 {[%emt 0:01:49]} Kh8 {[%emt 0:03:46]} 23. Rh3 {[%emt 0:00:52]} e5 {[%emt 0:00:23]} 24. Rh4 {[%emt 0:10:29]} Rb4 {[%emt 0:03:08]} 25. Bd5 {[%emt 0:00:49]} Qe7 {[%emt 0:02:49]} 26. Qg3 {[%emt 0:01:20]} Be6 {[%emt 0:04:50]} 27. Rh5 Rdb8 28. b3 {[%emt 0:07:47]} Bxd5 {[%emt 0:02:44]} 29. exd5 {[%emt 0:02:29]} Qf6 {[%emt 0:03:34]} 30. Qh3 {[%emt 0:02:14]} e4 {[%emt 0:07:18]} 31. c3 {[%emt 0:07:37]} R4b7 {[%emt 0:03:10]} 32. Rf5 {[%emt 0:02:24]} Qg6 {[%emt 0:00:40]} 33. Rdf1 {[%emt 0:00:40]} Kh7 {[%emt 0:01:59]} 34. Rf8 {[%emt 0:00:53]} Qg5+ {[%emt 0:01:12]} 35. Kc2 {[%emt 0:02:00]} Qxd5 {[%emt 0:00:35]} 36. Rxb8 {[%emt 0:03:35]} Rxb8 {[%emt 0:00:14]} 37. Qf5+ {[%emt 0:00:50]} Qxf5 {[%emt 0:00:05]} 38. Rxf5 {[%emt 0:00:08]} Re8 {[%emt 0:02:32]} 39. Kd2 {[%emt 0:00:24]} Kg6 {[%emt 0:02:42]} 40. g4 {[%emt 0:00:26]} a4 {[%emt 0:03:12]} 41. Ke3 {[%emt 0:30:41]} axb3 {[%emt 0:30:23]} 42. axb3 {[%emt 0:00:13]} Rb8 {[%emt 0:00:11]} 43. Kxe4 {[%emt 0:00:48]} Rxb3 {[%emt 0:00:09]} 44. Kd3 {[%emt 0:00:48]} Rb2 {[%emt 0:00:58]} 45. h4 {[%emt 0:00:07]} Rg2 {[%emt 0:00:22]} 46. h5+ {[%emt 0:00:20]} Kh7 {[%emt 0:00:04]} 47. Rf4 {[%emt 0:00:28]} d5 {[%emt 0:02:39]} 48. Ra4 {[%emt 0:01:20]} Rg3+ {[%emt 0:03:08]} 49. Kc2 {[%emt 0:00:35]} d4 {[%emt 0:01:39]} 50. cxd4 {[%emt 0:00:33]} Rxg4 {[%emt 0:00:06]} 51. Rc4 {[%emt 0:00:59]} cxd4 {[%emt 0:00:07]} 52. Kd3 {[%emt 0:00:05]} Rg5 {[%emt 0:00:05]} 0-1

[Event "SVK-ch Open 2018"]
[Site "Banska Stiavnica"]
[Date "2018.07.11"]
[Round "5"]
[White "Posa, Norbert"]
[Black "Molnar, Erno"]
[Result "0-1"]
[ECO "A45"]
[WhiteElo "2036"]
[BlackElo "2231"]
[Annotator "NA"]
[PlyCount "70"]
[EventDate "2018.07.07"]
[EventType "swiss"]
[EventCountry "SVK"]
[SourceTitle "playchess.com"]
[Source "ChessBase"]
[SourceQuality "1"]
[TimeControl "40/5400+30:1800+30"]

1. d4 {[%emt 0:00:00]} Nf6 {[%emt 0:00:42]} 2. Bf4 {[%emt 0:00:00]} g6 {[%emt 0:00:39]} 3. Nc3 {[%emt 0:00:00]} d5 {[%emt 0:02:36]} 4. Qd2 {[%emt 0:00:27]} c6 {[%emt 0:02:40]} 5. f3 {[%emt 0:04:59]} b5 $11 {[%emt 0:03:47] LiveBook: 6 Games} 6. a3 {[%emt 0:01:41]} Bg7 {[%emt 0:01:17]} 7. e4 {[%emt 0:04:21]} dxe4 {[%emt 0:07:51]} 8. fxe4 {[%emt 0:00:18]} O-O {[%emt 0:01:40]} 9. Nf3 {[%emt 0:01:22]} a5 {[%emt 0:01:58]} 10. Be2 {[%emt 0:10:30]} Na6 {[%emt 0:11:39]} 11. e5 {[%emt 0:01:47]} Nd5 {[%emt 0:04:33]} 12. Bh6 {[%emt 0:01:02]} Nac7 {[%emt 0:02:49]} 13. Bxg7 {[%emt 0:00:46]} Kxg7 {[%emt 0:00:10]} 14. O-O {[%emt 0:00:48]} f5 {[%emt 0:05:25]} 15. Nxd5 {[%emt 0:02:06]} Nxd5 {[%emt 0:03:57]} 16. c4 {[%emt 0:02:03]} bxc4 {[%emt 0:02:05]} 17. Bxc4 {[%emt 0:00:06]} Be6 {[%emt 0:04:55]} 18. Ng5 {[%emt 0:12:33]} Bg8 {[%emt 0:02:13]} 19. Rac1 {[%emt 0:00:10]} Qb6 {[%emt 0:11:11]} 20. Rf3 {[%emt 0:06:04]} h6 {[%emt 0:07:01]} 21. Nh3 {[%emt 0:05:47]} Rfd8 {[%emt 0:02:23]} 22. Rd3 {[%emt 0:04:36]} a4 {[%emt 0:03:43]} 23. Kh1 {[%emt 0:18:32]} Rab8 {[%emt 0:02:39]} 24. Rc2 {[%emt 0:01:13]} Rd7 {[%emt 0:02:36]} 25. Ng1 {[%emt 0:00:31]} Rdb7 {[%emt 0:02:54]} 26. Nf3 {[%emt 0:03:33]} Qd8 {[%emt 0:01:10]} 27. h4 {[%emt 0:02:00]} f4 {[%emt 0:03:39]} 28. Bxd5 {[%emt 0:00:57]} Bxd5 {[%emt 0:00:14]} 29. Qxf4 {[%emt 0:00:44]} Rxb2 {[%emt 0:00:24]} 30. Rxb2 {[%emt 0:00:30]} Rxb2 {[%emt 0:00:03]} 31. h5 {[%emt 0:02:13]} Qf8 {[%emt 0:02:00]} 32. Qxf8+ {[%emt 0:00:39]} Kxf8 {[%emt 0:00:02]} 33. hxg6 {[%emt 0:00:30]} Rb3 {[%emt 0:01:00]} 34. Ne1 {[%emt 0:04:05]} Be4 {[%emt 0:00:31]} 35. Rh3 {[%emt 0:00:20]} Rxh3+ {[%emt 0:00:10]} 0-1